Cogmind - Beta 9.4 @@@ ROGUE MODE // 2020.03.13 @ 23:25:08 Player: JerichoBot Result: Destroyed by G-47 Trooper with Particle Gun Performance ------------- Evolutions (2) 1000 Regions Visited (4) 800 Robots Destroyed (37) 185 Value Destroyed (1014) 1014 Prototype IDs (0) 0 Alien Tech Used (0) 0 Bonus (0) 0 TOTAL SCORE: 2999 Bonus ------- None Cogmind --------- Core Integrity 0/550 Matter 275/300 Energy 100/100 System Corruption 1% Temperature Cool (9) Movement Walking (120) Location -8/Materials Parts ------- > --- POWER (1) -------- (None) > --- PROPULSION (4) --- Aluminum Leg > --- UTILITY (3) ------ (None) > --- WEAPON (3) ------- (None) > --- INVENTORY (4) ---- Improved Heat Sink Advanced Visual Processing Unit Recoil Stabilizer Peak State ------------ > --- POWER ------------ Ion Engine > --- PROPULSION ------- Aluminum Leg Aluminum Leg Aluminum Leg Aluminum Leg > --- UTILITY ---------- Heat Sink Large Storage Unit Large Storage Unit > --- WEAPON ----------- Heavy Assault Rifle Shock Bomb Launcher Shock Bomb Launcher > --- INVENTORY -------- Light Deuterium Engine Aluminum Leg Aluminum Leg Aluminum Leg Improved Heat Sink Improved Heat Sink Advanced Visual Processing Unit Recoil Stabilizer Small Laser Beam Rifle Particle Gun Assault Rifle Heavy Assault Rifle Shock Bomb Launcher Shock Bomb Launcher [Rating: 19] Favorites ----------- Power Ion Engine Engine Ion Engine Propulsion Aluminum Leg Leg Aluminum Leg Utility Large Storage Unit Device Tractor Beam Storage Large Storage Unit Weapon Assault Rifle Energy Gun EM Pulse Gun Ballistic Gun Assault Rifle Launcher Shock Bomb Launcher Build | -11 -10 -10 -9 -8 ------- Run | Scr Mat Min Mat Mat Slots Evolved 4 | . . . 2 2 Power . | . . . . . Propulsion 2 | . . . 1 1 Utility 1 | . . . . 1 Weapon 1 | . . . 1 . Parts Attached 53 | 7 6 8 11 21 Power 6 | 1 1 1 1 2 Engine 6 | 1 1 1 1 2 Core . | . . . . . Reactor . | . . . . . Propulsion 17 | 2 2 2 6 5 Treads . | . . . . . Leg 17 | 2 2 2 6 5 Wheel . | . . . . . Hover . | . . . . . Flight . | . . . . . Utility 6 | 2 1 1 1 1 Device 3 | 1 . 1 . 1 Storage 3 | 1 1 . 1 . Processor . | . . . . . Hackware . | . . . . . Protection . | . . . . . Artifact . | . . . . . Weapon 24 | 2 2 4 3 13 Energy Gun 13 | 1 2 3 . 7 Energy Cannon . | . . . . . Ballistic Gun 9 | 1 . 1 3 4 Ballistic Cannon . | . . . . . Launcher 2 | . . . . 2 Special Weapon . | . . . . . Impact Weapon . | . . . . . Slashing Weapon . | . . . . . Piercing Weapon . | . . . . . Special Melee Weapon . | . . . . . Unidentified Prototypes . | . . . . . Parts Lost 23 | . . 4 2 17 Power 4 | . . . 1 3 Propulsion 7 | . . . . 7 Utility 2 | . . 1 . 1 Weapon 10 | . . 3 1 6 Highest Loss Streak 14 | . . 2 2 14 Average Slot Usage (%) 92 | . 100 89 99 76 Engine 11 | . 14 14 10 7 Leg 29 | . 28 28 33 26 Device 6 | . 14 4 3 6 Storage 15 | . 14 14 18 14 Energy Gun 10 | . 19 22 . 11 Ballistic Gun 16 | . 8 5 32 3 Naked Turns 26 | . . . . 26 Heaviest Build 53 | 14 26 26 44 53 Greatest Support 40 | 20 20 20 30 40 Greatest Overweight (x) 3 | 1 1 1 1 3 Average Overweight (x) . | . . 1 . . Largest Inventory Capacity 16 | 6 10 10 16 16 Average Capacity 11 | 5 7 10 13 13 Most Carried 16 | 6 7 10 16 16 Average Carried 10 | 4 6 8 12 12 Final Capacity 16 | 6 10 10 16 4 Final Carried 16 | 4 7 10 16 3 Class Distribution -------------------- 40% | Mutant 37% | Gunner 12% | Scavenger-Gunner 8% | Scavenger-Mutant Dominant Class ---------------- Scavenger-Mutant | -10/Materials Mutant | -10/Mines Gunner | -9/Materials Scavenger-Gunner | -8/Materials Resources | -11 -10 -10 -9 -8 ----------- Run | Scr Mat Min Mat Mat Matter Collected 956 | 291 117 72 334 142 Remotely 122 | . . 37 85 . Salvage Created 1350 | 63 287 142 402 456 Parts 84 | 6 16 6 29 27 Haulers Intercepted . | . . . . . Recyclers Shooed 2 | 1 1 . . . Parts Field Recycled . | . . . . . Retrieved Matter . | . . . . . Parts Self-Destructed . | . . . . . Prevented . | . . . . . Kills | -11 -10 -10 -9 -8 ------- Run | Scr Mat Min Mat Mat Combat Hostiles Destroyed 26 | . 4 5 7 10 Guns 18 | . 4 4 7 3 AOE 8 | . . 1 . 7 Classes Destroyed 9 | 1 4 1 3 . Worker 2 | . . . 2 . Builder 1 | . 1 . . . Tunneler 3 | 3 . . . . Recycler 1 | . 1 . . . Watcher 4 | . 1 . 2 1 Swarmer 7 | . . 3 . 4 Grunt 13 | . 4 2 3 4 Brawler 1 | . . . 1 . Sentry 5 | . . . 3 2 Best Kill Streak 6 | 3 6 2 3 5 Combat Bots Only 5 | . 3 2 2 5 Max Kills in Single Turn 4 | 1 2 1 2 4 Gunslinging . | . . . . . Exploded 4 | . . 1 . 4 Melee . | . . . . . Uniques/NPCs Destroyed . | . . . . . Combat | -11 -10 -10 -9 -8 -------- Run | Scr Mat Min Mat Mat Damage Taken 2982 | . 278 323 418 1963 Core 693 | . 50 39 52 552 Absorbed by Shields . | . . . . . Core Remaining (%) 83 | 100 . 64 87 . Volleys Fired 100 | 7 21 20 30 22 Largest 3 | 2 2 2 3 3 Hottest 161 | 70 80 90 63 161 Shots Fired 227 | 14 42 38 90 43 Gun 219 | 14 42 38 90 35 Cannon . | . . . . . Launcher 8 | . . . . 8 Special . | . . . . . Kinetic 122 | 7 19 2 90 4 Thermal 50 | 7 19 2 . 22 Explosive . | . . . . . Electromagnetic 55 | . 4 34 . 17 Robot Hit Streak 11 | 11 6 4 7 7 Robot Miss Streak 7 | 1 3 7 3 3 Penetration Max . | . . . . . Secondary Targets 2 | . . 2 . . Max Gunslinging Chain 1 | . . 1 . . Shots Hit Robots 125 | 12 26 17 49 21 Core Hits 64 | 4 13 8 19 20 Critical Hits . | . . . . . Critical Kills . | . . . . . Critical Parts Destroyed . | . . . . . Melee Attacks . | . . . . . Impact . | . . . . . Slashing . | . . . . . Piercing . | . . . . . Sneak Attacks . | . . . . . Combat Hostiles . | . . . . . Follow-up Attacks . | . . . . . Damage Inflicted 2249 | 145 338 230 598 938 Guns 1604 | 145 338 185 598 338 Cannons . | . . . . . Explosions 643 | . . 45 . 598 Melee . | . . . . . Ramming 2 | . . . . 2 Kinetic 863 | 70 144 14 598 37 Thermal 798 | 75 174 57 . 492 Explosive . | . . . . . Electromagnetic 586 | . 20 159 . 407 Impact . | . . . . . Slashing . | . . . . . Piercing . | . . . . . Highest Corruption 1 | . . . . 1 Average Corruption 1 | . . . . 1 Corruption Purged . | . . . . . Effects 1 | . . . . 1 Energy Discharges 1 | . . . . 1 Overload Shots . | . . . . . Overflow Damage 26 | . . . . 26 Projectiles . | . . . . . Explosions 26 | . . . . 26 Melee . | . . . . . Knockbacks . | . . . . . Impact . | . . . . . Kinetic . | . . . . . Secondary . | . . . . . Self-Inflicted Damage 12 | . . . . 12 Shots 2 | . . . . 2 Rammed 2 | . . . . 2 Targets Rammed 2 | . . . . 2 Kicked . | . . . . . Crushed . | . . . . . Highest Temperature 219 | 54 93 199 9 219 Average Temperature 56 | 25 32 106 4 58 Received Heat Transfer 1431 | . 153 105 165 1008 Siege Activations . | . . . . . Robots Corrupted . | . . . . . Combat Hostiles . | . . . . . Parts Fried 1 | . . 1 . . Impact Corruptions . | . . . . . Robots Melted . | . . . . . Combat Hostiles . | . . . . . Parts Melted 4 | . 1 . . 3 Heat Transferred 1535 | 222 518 37 . 758 Parts Sabotaged . | . . . . . Parts Stolen . | . . . . . Parts Stripped . | . . . . . Power Chain Reactions 5 | . . 1 . 4 Missiles Intercepted . | . . . . . Alert | -11 -10 -10 -9 -8 ------- Run | Scr Mat Min Mat Mat Peak Influence 264 | 15 171 165 150 264 Average Influence 91 | 6 98 130 50 152 Maximum Alert Level 1 | . . . . 1 Low Security (%) 93 | 100 100 100 100 65 Level 1 6 | . . . . 34 Level 2 . | . . . . . Level 3 . | . . . . . Level 4 . | . . . . . Level 5 . | . . . . . High Security . | . . . . . Max Security . | . . . . . Squads Dispatched 2 | . 1 . . 1 Investigation . | . . . . . Extermination . | . . . . . Reinforcement 2 | . 1 . . 1 Assault . | . . . . . Garrison . | . . . . . Intercept . | . . . . . Construction Impeded 1 | . . . . 1 Haulers Reinforced . | . . . . . Stealth | -11 -10 -10 -9 -8 --------- Run | Scr Mat Min Mat Mat Distress Signals . | . . . . . Communications Jammed . | . . . . . Distress Signals . | . . . . . Times Spotted 44 | . 9 5 9 21 Peak Tracking Total 10 | . 3 3 2 10 Tactical Retreats 3 | . . . . 3 Traps | -11 -10 -10 -9 -8 ------- Run | Scr Mat Min Mat Mat Traps Triggered . | . . . . . Indirectly . | . . . . . Trap Hack Attempts . | . . . . . Triggered . | . . . . . Disarmed . | . . . . . Reprogrammed . | . . . . . Reused . | . . . . . Traps Extracted . | . . . . . Installed . | . . . . . Triggered . | . . . . . Machines | -11 -10 -10 -9 -8 ---------- Run | Scr Mat Min Mat Mat Machines Disabled 4 | . . 1 1 2 Max in Single Turn 1 | . . 1 1 1 Machines Sabotaged . | . . . . . Garrisons Compromised . | . . . . . Overloaded Fab Kills . | . . . . . Fab Network Shutdowns . | . . . . . Hacking | -11 -10 -10 -9 -8 --------- Run | Scr Mat Min Mat Mat Machines Accessed 1 | . . 1 . . Terminals 1 | . . 1 . . Fabricators . | . . . . . Repair Stations . | . . . . . Recycling Units . | . . . . . Scanalyzers . | . . . . . Garrison Access . | . . . . . Total Hacks 5 | . . 5 . . Successful 4 | . . 4 . . Failed 1 | . . 1 . . Catastrophic . | . . . . . Database Lockouts . | . . . . . Manual . | . . . . . Terminals 5 | . . 5 . . Fabricators . | . . . . . Repair Stations . | . . . . . Recycling Units . | . . . . . Scanalyzers . | . . . . . Garrison Access . | . . . . . Terminal Hacks 4 | . . 4 . . Record 3 | . . 3 . . Alert Level 1 | . . 1 . . Fabricator Hacks . | . . . . . Repair Station Hacks . | . . . . . Recycling Unit Hacks . | . . . . . Scanalyzer . | . . . . . Garrison Access Hacks . | . . . . . Unauthorized Hacks . | . . . . . Terminals . | . . . . . Fabricators . | . . . . . Repair Stations . | . . . . . Recycling Units . | . . . . . Scanalyzers . | . . . . . Garrison Access . | . . . . . Data Cores Recovered . | . . . . . Used . | . . . . . Hacking Detections . | . . . . . Full Trace Events . | . . . . . Feedback Events . | . . . . . Feedback Blocked . | . . . . . Robot Schematics Acquired . | . . . . . Robots Built . | . . . . . Matter . | . . . . . Time . | . . . . . Total Robot Build Rating . | . . . . . Part Schematics Acquired . | . . . . . Parts Built . | . . . . . Matter . | . . . . . Time . | . . . . . Total Part Build Rating . | . . . . . Parts Repaired . | . . . . . Time . | . . . . . Parts Recycled . | . . . . . Recycled Matter . | . . . . . Retrieved Matter . | . . . . . Retrieved Components . | . . . . . Parts Scanalyzed . | . . . . . Part Schematics Acquired . | . . . . . Parts Damaged . | . . . . . Bothacking | -11 -10 -10 -9 -8 ------------ Run | Scr Mat Min Mat Mat Used RIF Installer . | . . . . . Robots Hacked . | . . . . . Non-combat . | . . . . . Combat . | . . . . . Robot Hacks Applied . | . . . . . Relay Couplers Released . | . . . . . Robots Rewired . | . . . . . Allies Hacked . | . . . . . Hacks Repelled . | . . . . . Allies | -11 -10 -10 -9 -8 -------- Run | Scr Mat Min Mat Mat Total Allies . | . . . . . Largest Group . | . . . . . Highest-Rated Group . | . . . . . Highest-Rated Ally . | . . . . . Total Orders . | . . . . . Ally Attacks . | . . . . . Total Damage . | . . . . . Kills . | . . . . . Allies Corrupted . | . . . . . Allies Melted . | . . . . . Intel | -11 -10 -10 -9 -8 ------- Run | Scr Mat Min Mat Mat Robot Analysis Total . | . . . . . Derelict Logs Recovered . | . . . . . Drone Launches . | . . . . . Drone Recoveries . | . . . . . Exploration | -11 -10 -10 -9 -8 ------------- Run | Scr Mat Min Mat Mat Turns Passed 1829 | 114 269 415 703 328 Spaces Moved 1023 | 69 138 229 415 172 Core 79 | 30 . . . 49 Treads . | . . . . . Legs 944 | 39 138 229 415 123 Wheels . | . . . . . Hover . | . . . . . Flight . | . . . . . Fastest Speed 50 | 50 120 150 120 50 Average Speed 135 | 109 133 150 138 124 Slowest Speed 210 | 120 150 150 150 210 Overloaded Moves . | . . . . . Propulsion Burnouts . | . . . . . Robots Hopped . | . . . . . Cave-ins Triggered . | . . . . . Exploration Rate (%) 23 | 3 23 48 27 15 Regions Visited 4 Branch Regions 1 Pre-discovered Areas . | . . . . . Known Exits Taken . | . . . . . Unknown Exits Taken 4 | 1 1 1 1 . Scrap Searched 2 | . . 2 . . Spaces Dug . | . . . . . Terrain Destroyed 22 | . . 10 . 12 Melee . | . . . . . Projectile . | . . . . . AOE 22 | . . 10 . 12 Actions | -11 -10 -10 -9 -8 --------- Run | Scr Mat Min Mat Mat Total 1273 | 93 183 262 482 253 Wait 34 | . 8 . 6 20 Move 1019 | 68 137 228 414 172 Hop . | . . . . . Pick Up 43 | 11 5 5 14 8 Fast Attach . | . . . . . Attach 30 | 7 . 4 4 15 Detach . | . . . . . Swap 23 | . 6 4 7 6 Drop 22 | . 6 1 7 8 Fire 100 | 7 21 20 30 22 Melee . | . . . . . Ram . | . . . . . Kick 2 | . . . . 2 Crush . | . . . . . Escape Stasis . | . . . . . Rewire . | . . . . . Trap . | . . . . . Miscellaneous . | . . . . . Route ------- -11/Scrapyard -10/Materials (discovered 2 exits: *Min x2) -10/Mines -9/Materials -8/Materials History --------- Turn | Location | Event 29 | -11/Scrapyard | Discovered new exit (range 15) 115 | -11/Scrapyard | Entered Materials 343 | -10/Materials | Discovered new exit (range 16) 346 | -10/Materials | Discovered new exit (range 13) 384 | -10/Materials | Entered Mines 407 | -10/Mines | Met a Derelict bent on vengeance 711 | -10/Mines | Build established: Mutant 776 | -10/Mines | Discovered new exit (range 5) 799 | -10/Mines | Entered Materials 799 | -9/Materials | Evolved 2 slots: Propulsion x1, Weapon x1 1096 | -9/Materials | Build established: Gunner 1489 | -9/Materials | Discovered new exit (range 5) 1502 | -9/Materials | Entered another Materials area 1502 | -8/Materials | Evolved 2 slots: Propulsion x1, Utility x1 1773 | -8/Materials | Core integrity fell below 50% 1804 | -8/Materials | Lost 14 parts (2p7n1u4w) 1819 | -8/Materials | Core integrity fell below 20% 1830 | -8/Materials | Destroyed by G-47 Trooper with Particle Gun Last Messages --------------- G-47 Trooper destroyed. Chain reaction triggered in Lgt. Angular Momentum Engine. G-50 Soldier destroyed. G-47 Trooper misfires. Hvy. EM Pulse Gun destroyed. U-05 Engineer lays Concrete. Deuterium Engine destroyed. Acquired Beam Rifle. Beam Rifle destroyed. Acquired Aluminum Leg. Acquired 8 matter. G-47 Trooper misfires. U-05 Engineer builds a Wall. Dropped Aluminum Leg. Acquired Aluminum Leg. U-05 Engineer builds a Wall. R-06 Scavenger collects Aluminum Leg. R-06 Scavenger collects Lgt. Nuclear Core. Slammed into R-06 Scavenger. U-05 Engineer builds a Door. Map ----- +----------------------------------------------------+ | | | | | ???????????????????????????????????? | | ???????????????????????????????????? | | ???????????????????????????????????? | | ???????????????????????????????????? | | ???????????????????????????????????? | | ???????????????????????????????????? | | ???????????????????????????????????? | | ???????????????????????????????????? | | ???????????????????????????????????? | | ???????????????????????????????????? | | ???????????????????????????????????? | | ???????????????????????????????????? | | ???????????????????????????????????? | | ????????????########???????????????? | | ??########### ! ! !#???????????????? | | ??# ; # #???????????????? | | ??#""" % # #???######??????? | | ??#""" +[ + #??? ??????? | | ??#""" #uY# "T" #? ??????? | | ??# #g # """ # ???????? | | ??# # ######## ???????? | | ??######## #??????# "" """???????? | | ?????????#r #??????# "Y ""????????? | | ?????????#r@#??????? "" "?????????? | | ?"T ????## ##??????? ??????????? | | ?"" # #########+############# | | ? + [ | | ????? # !!][ | | ????? #* ### !!] ########## | | ???? ##+###?# !] #????????? | | ??""" ?????????# !] #????????? | | ???????????????# ! + !????? | | ???????????????# # #???? | | ???????????????# ### ### #?? ?#???? | | ???????????????# #?# #?# #????????? | | ???????????????# ###/###+####?????? | | ???????????????# ##* #?????? | | ?????????? ??## ##% #?????? | | ??????????"" # #! #?????? | | ??????????"" + # "%"" #?????? | | ??????????????# /%%= %""" #?????? | | ??????????????# #%[ """" #?????? | | ??????????????## ##=%% """" #?????? | | ???????????????# ?#[ %""" #?????? | | ???????????????# ?###########?????? | | ???????????????# ?????????????????? | | ???????????????? ?????????????????? | | ???????????????????????????????????? | +----------------------------------------------------+ Best States ------------- Heat Dissipation 41 Energy Generation 14 Energy Capacity 275 Matter Stores 300 Matter Capacity 300 Sight Range 16 Terrain Scan Range 16 Terrain Scan Density 10 Evasion (%) 50 Item Schematics ----------------- None Robot Schematics ------------------ None Fabricated ------------ Nothing Alien Tech Used ----------------- None Achievements -------------- Use The Force Challenges ------------ None Game ------ Seed FlyingTrackerClaw Manual? 0 Play Time 00:28:15 Cumulative 3.9 hours Start 2020.03.13 @ 22:35:17 End 2020.03.13 @ 23:25:08 Sessions 1 Manual Loads 0 Difficulty Rogue Special Mode None Game No. 7 Rogue 7 Adventurer 0 Explorer 0 Win Type - Total 0 Types 0/0/0/0/0/0/0 Lore% 4 Gallery% 9 Achievement% 8 Wizard Run 0 Options --------- ASCII 0 Keyboard 0 Movement Arrows Keybinds 0 Fullscreen 2 Font 16/SmallcapsGlow Map View 75x55 Tactical HUD 0 Map Filters NONE Filters NONE Steam 0 RUN: 6555a061-e352-4d7c-a1ca-f6f702bd88a7